Cogmind - Beta 10.2 @@@ ROGUE MODE // 2021.05.17 @ 14:11:47 Player: Teratos Result: Destroyed by D-53 Grenadier with Mini Grenade Launcher Performance ------------- Evolutions (0) 0 Regions Visited (4) 800 Robots Destroyed (27) 135 Value Destroyed (542) 542 Prototype IDs (8) 160 Alien Tech Used (0) 0 Bonus (300) 300 TOTAL SCORE: 1937 Bonus ------- Aligned with FarCom 300 Cogmind --------- Core Integrity 0/250 Matter 300/300 Energy 98/100 System Corruption 1% Temperature Cool (1) Movement Walking (150) Ox1 Location -9/Mines Parts ------- > --- POWER (1) -------- (None) > --- PROPULSION (2) --- Aluminum Leg > --- UTILITY (2) ------ Large Storage Unit > --- WEAPON (2) ------- (None) > --- INVENTORY (10) --- Ion Engine Army-in-a-Box Peak State ------------ > --- POWER ------------ Ion Engine > --- PROPULSION ------- Aluminum Leg Improved Aluminum Leg > --- UTILITY ---------- Sensor Array Improved Signal Interpreter > --- WEAPON ----------- Firepult > --- INVENTORY -------- Ion Engine [Rating: 27] Favorites ----------- Power Ion Engine Engine Ion Engine Propulsion Improved Aluminum Leg Treads Light Treads Leg Improved Aluminum Leg Utility Sensor Array Device Sensor Array Storage Large Storage Unit Processor Improved Signal Interpreter Weapon Heavy EM Pulse Gun Energy Gun Heavy EM Pulse Gun Energy Cannon Firepult Ballistic Gun Light Assault Rifle Build | -11 -10 -10 -10 -9 ------- Run | Scr Mat Min Exi Min Slots Evolved . | . . . . . Power . | . . . . . Propulsion . | . . . . . Utility . | . . . . . Weapon . | . . . . . Parts Attached 27 | 5 16 . 5 1 Power 2 | 1 1 . . . Engine 2 | 1 1 . . . Core . | . . . . . Reactor . | . . . . . Propulsion 5 | 2 3 . . . Treads 2 | 2 . . . . Leg 3 | . 3 . . . Wheel . | . . . . . Hover . | . . . . . Flight . | . . . . . Utility 7 | . 4 . 3 . Device 3 | . 2 . 1 . Storage 2 | . . . 2 . Processor 2 | . 2 . . . Hackware . | . . . . . Protection . | . . . . . Artifact . | . . . . . Weapon 13 | 2 8 . 2 1 Energy Gun 11 | 2 8 . 1 . Energy Cannon 1 | . . . 1 . Ballistic Gun 1 | . . . . 1 Ballistic Cannon . | . . . . . Launcher . | . . . . . Special Weapon . | . . . . . Impact Weapon . | . . . . . Slashing Weapon . | . . . . . Piercing Weapon . | . . . . . Special Melee Weapon . | . . . . . Unidentified Prototypes 2 | . . . 2 . Parts Lost 8 | . 2 1 . 5 Power 1 | . . . . 1 Propulsion 1 | . . . . 1 Utility 1 | . . . . 1 Weapon 5 | . 2 1 . 2 Highest Loss Streak 5 | . 2 1 . 5 Average Slot Usage (%) 87 | . 95 87 64 96 Engine 14 | . 14 14 14 14 Treads 8 | . 17 . . . Leg 19 | . 10 28 28 28 Device 11 | . 13 14 6 14 Storage 4 | . . . 5 14 Processor 7 | . 11 14 3 . Energy Gun 18 | . 27 16 6 14 Ballistic Gun 2 | . . . . 10 Naked Turns . | . . . . . Heaviest Build 26 | 8 12 12 25 26 Greatest Support 40 | 40 40 23 23 23 Greatest Overweight (x) 1 | 1 . . 1 1 Average Overweight (x) . | . . . . 1 Largest Inventory Capacity 24 | 4 4 4 24 10 Average Capacity 5 | 4 4 4 6 10 Most Carried 7 | . 3 1 7 7 Average Carried 3 | . 2 1 2 7 Final Capacity 10 | 4 4 4 10 10 Final Carried 7 | . 1 1 7 7 Class Distribution -------------------- 85% | Mutant 14% | Skirmisher Dominant Class ---------------- Mutant | -10/Materials Mutant | -10/Mines Mutant | -10/Exiles Skirmisher | -9/Mines Resources | -11 -10 -10 -10 -9 ----------- Run | Scr Mat Min Exi Min Matter Collected 449 | 201 199 . . 49 Remotely . | . . . . . Salvage Created 1148 | . 869 279 . . Parts 69 | . 54 15 . . Haulers Intercepted 2 | . 2 . . . Recyclers Shooed . | . . . . . Parts Field Recycled . | . . . . . Retrieved Matter . | . . . . . Parts Self-Destructed . | . . . . . Prevented . | . . . . . Kills | -11 -10 -10 -10 -9 ------- Run | Scr Mat Min Exi Min Combat Hostiles Destroyed 12 | . 10 2 . . Guns 10 | . 8 2 . . AOE 1 | . 1 . . . Classes Destroyed 8 | . 7 1 . . Worker 2 | . 2 . . . Builder 5 | . 4 1 . . Tunneler 1 | . . 1 . . Hauler 2 | . 2 . . . Recycler 3 | . 1 2 . . Operator 1 | . 1 . . . Watcher 1 | . 1 . . . Grunt 12 | . 10 2 . . Best Kill Streak 5 | . 5 5 . . Combat Bots Only 4 | . 4 2 . . Max Kills in Single Turn 2 | . 2 1 . . Gunslinging . | . . . . . Exploded 1 | . 1 . . . Melee . | . . . . . Uniques/NPCs Destroyed . | . . . . . Combat | -11 -10 -10 -10 -9 -------- Run | Scr Mat Min Exi Min Damage Taken 1058 | . 606 75 . 377 Core 259 | . 98 21 . 140 Absorbed by Shields . | . . . . . Core Remaining (%) 100 | 100 . . . . Volleys Fired 71 | . 56 15 . . Largest 2 | . 2 2 . . Hottest 90 | . 90 90 . . Shots Fired 120 | . 104 16 . . Gun 120 | . 104 16 . . Cannon . | . . . . . Launcher . | . . . . . Special . | . . . . . Kinetic . | . . . . . Thermal 12 | . 12 . . . Explosive . | . . . . . Electromagnetic 108 | . 92 16 . . Robot Hit Streak 14 | . 14 9 . . Robot Miss Streak 4 | . 4 3 . . Penetration Max . | . . . . . Secondary Targets 3 | . 3 . . . Max Gunslinging Chain 1 | . 1 . . . Shots Hit Robots 77 | . 66 11 . . Core Hits 30 | . 23 7 . . Critical Hits . | . . . . . Critical Kills . | . . . . . Critical Parts Destroyed . | . . . . . Melee Attacks . | . . . . . Impact . | . . . . . Slashing . | . . . . . Piercing . | . . . . . Sneak Attacks . | . . . . . Combat Hostiles . | . . . . . Follow-up Attacks . | . . . . . Damage Inflicted 1653 | . 1346 307 . . Guns 1332 | . 1122 210 . . Cannons . | . . . . . Explosions 321 | . 224 97 . . Melee . | . . . . . Ramming . | . . . . . Kinetic . | . . . . . Thermal 418 | . 321 97 . . Explosive . | . . . . . Electromagnetic 1235 | . 1025 210 . . Impact . | . . . . . Slashing . | . . . . . Piercing . | . . . . . Highest Corruption 1 | . 1 1 1 1 Average Corruption 1 | . 1 1 1 1 Corruption Purged . | . . . . . Effects 9 | . 3 . 4 2 Message Errors 3 | . 1 . 1 1 Energy Discharges 2 | . 1 . 1 . Data Loss (minor) 3 | . . . 2 1 Targeting Errors 1 | . 1 . . . Overload Shots . | . . . . . Overflow Damage 19 | . 17 2 . . Projectiles . | . . . . . Explosions 19 | . 17 2 . . Melee . | . . . . . Knockbacks . | . . . . . Impact . | . . . . . Kinetic . | . . . . . Secondary . | . . . . . Self-Inflicted Damage 91 | . 74 17 . . Shots 4 | . 3 1 . . Rammed 1 | . . 1 . . Targets Rammed 1 | . . 1 . . Kicked . | . . . . . Crushed . | . . . . . Highest Temperature 344 | . 344 99 . 2 Average Temperature 117 | . 136 57 . 2 Received Heat Transfer 347 | . 294 33 . 20 Effects 3 | . 3 . . . Energy Bleed 1 | . 1 . . . Short Circuit 1 | . 1 . . . Damage (minor) 1 | . 1 . . . Siege Activations . | . . . . . Robots Corrupted 1 | . 1 . . . Combat Hostiles 1 | . 1 . . . Parts Fried 8 | . 8 . . . Impact Corruptions . | . . . . . Robots Melted . | . . . . . Combat Hostiles . | . . . . . Parts Melted . | . . . . . Heat Transferred 575 | . 475 100 . . Parts Sabotaged . | . . . . . Parts Stolen . | . . . . . Parts Stripped . | . . . . . Power Chain Reactions 6 | . 5 1 . . Missiles Intercepted . | . . . . . Alert | -11 -10 -10 -10 -9 ------- Run | Scr Mat Min Exi Min Peak Influence 228 | . 228 83 . 15 Initial 23 | . . 23 . . Average 36 | . 45 71 . . Maximum Alert Level 1 | . 1 . . . Low Security (%) 99 | 100 99 100 . 100 Level 1 . | . . . . . Level 2 . | . . . . . Level 3 . | . . . . . Level 4 . | . . . . . Level 5 . | . . . . . High Security . | . . . . . Max Security . | . . . . . Squads Dispatched 5 | . 5 . . . Investigation 3 | . 3 . . . Extermination . | . . . . . Reinforcement 2 | . 2 . . . Assault . | . . . . . Garrison . | . . . . . Intercept . | . . . . . Construction Impeded . | . . . . . Haulers Reinforced . | . . . . . Stealth | -11 -10 -10 -10 -9 --------- Run | Scr Mat Min Exi Min Distress Signals 1 | . 1 . . . Communications Jammed . | . . . . . Distress Signals . | . . . . . Times Spotted 23 | . 16 2 . 5 Peak Tracking Total 8 | . 4 2 . 8 Tactical Retreats . | . . . . . Traps | -11 -10 -10 -10 -9 ------- Run | Scr Mat Min Exi Min Traps Triggered 2 | . 2 . . . Indirectly . | . . . . . Trap Hack Attempts . | . . . . . Triggered . | . . . . . Disarmed . | . . . . . Reprogrammed . | . . . . . Reused . | . . . . . Traps Extracted . | . . . . . Installed . | . . . . . Triggered . | . . . . . Machines | -11 -10 -10 -10 -9 ---------- Run | Scr Mat Min Exi Min Machines Disabled 2 | . 2 . . . Max in Single Turn 1 | . 1 . . . Machines Sabotaged . | . . . . . Garrisons Compromised . | . . . . . Overloaded Fab Kills . | . . . . . Fab Network Shutdowns . | . . . . . Hacking | -11 -10 -10 -10 -9 --------- Run | Scr Mat Min Exi Min Machines Accessed 7 | . 6 . . 1 Terminals 6 | . 5 . . 1 Fabricators . | . . . . . Repair Stations 1 | . 1 . . . Recycling Units . | . . . . . Scanalyzers . | . . . . . Garrison Access . | . . . . . Total Hacks 22 | . 21 . . 1 Successful 13 | . 12 . . 1 Failed 9 | . 9 . . . Catastrophic 1 | . 1 . . . Database Lockouts . | . . . . . Manual 1 | . . . 1 . Terminals 16 | . 15 . . 1 Fabricators . | . . . . . Repair Stations 6 | . 6 . . . Recycling Units . | . . . . . Scanalyzers . | . . . . . Garrison Access . | . . . . . Terminal Hacks 9 | . 8 . . 1 Prototype ID Bank 3 | . 3 . . . Alert Level 1 | . 1 . . . Locate Traps 2 | . 2 . . . Dispatch Records 1 | . . . . 1 Zone Layout 2 | . 2 . . . Fabricator Hacks . | . . . . . Repair Station Hacks 4 | . 4 . . . Scan Component 2 | . 2 . . . Repair 2 | . 2 . . . Recycling Unit Hacks . | . . . . . Scanalyzer . | . . . . . Garrison Access Hacks . | . . . . . Unauthorized Hacks . | . . . . . Terminals . | . . . . . Fabricators . | . . . . . Repair Stations . | . . . . . Recycling Units . | . . . . . Scanalyzers . | . . . . . Garrison Access . | . . . . . Data Cores Recovered . | . . . . . Used . | . . . . . Hacking Detections 5 | . 5 . . . Full Trace Events 2 | . 2 . . . Feedback Events . | . . . . . Feedback Blocked . | . . . . . Robot Schematics Acquired . | . . . . . Robots Built . | . . . . . Matter . | . . . . . Time . | . . . . . Total Robot Build Rating . | . . . . . Part Schematics Acquired . | . . . . . Parts Built . | . . . . . Matter . | . . . . . Time . | . . . . . Total Part Build Rating . | . . . . . Parts Repaired 2 | . 2 . . . Time 64 | . 64 . . . Parts Recycled . | . . . . . Recycled Matter . | . . . . . Retrieved Matter . | . . . . . Retrieved Components . | . . . . . Parts Scanalyzed . | . . . . . Part Schematics Acquired . | . . . . . Parts Damaged . | . . . . . Bothacking | -11 -10 -10 -10 -9 ------------ Run | Scr Mat Min Exi Min Used RIF Installer . | . . . . . Robots Hacked . | . . . . . Non-combat . | . . . . . Combat . | . . . . . Robot Hacks Applied . | . . . . . Relay Couplers Released . | . . . . . Robots Rewired . | . . . . . Allies Hacked . | . . . . . Hacks Repelled . | . . . . . Allies | -11 -10 -10 -10 -9 -------- Run | Scr Mat Min Exi Min Total Allies 5 | . . 2 . 3 Largest Group 3 | . . 2 1 3 Highest-Rated Group 45 | . . 45 31 40 Highest-Rated Ally 31 | . . 31 31 16 Total Orders . | . . . . . Ally Attacks 2 | . . . . 2 Total Damage 14 | . . . . 14 Kills . | . . . . . Allies Corrupted . | . . . . . Allies Melted . | . . . . . Intel | -11 -10 -10 -10 -9 ------- Run | Scr Mat Min Exi Min Robot Analysis Total . | . . . . . Derelict Logs Recovered 2 | . . 1 . 1 Drone Launches . | . . . . . Drone Recoveries . | . . . . . Exploration | -11 -10 -10 -10 -9 ------------- Run | Scr Mat Min Exi Min Turns Passed 3045 | 55 1363 290 754 583 Spaces Moved 2010 | 36 785 207 595 387 Core 12 | 12 . . . . Treads 479 | 24 455 . . . Legs 1519 | . 330 207 595 387 Wheels . | . . . . . Hover . | . . . . . Flight . | . . . . . Fastest Speed 50 | 50 120 120 120 150 Average Speed 136 | 134 143 120 124 150 Slowest Speed 160 | 160 160 120 150 150 Overloaded Moves . | . . . . . Propulsion Burnouts . | . . . . . Robots Hopped . | . . . . . Cave-ins Triggered . | . . . . . Exploration Rate (%) 53 | 3 95 45 71 51 Regions Visited 4 Branch Regions 3 Pre-discovered Areas . | . . . . . Known Exits Taken 2 | . 1 1 . . Unknown Exits Taken 2 | 1 . . 1 . Scrap Searched 2 | . . . . 2 Spaces Dug . | . . . . . Terrain Destroyed 16 | . 10 6 . . Melee . | . . . . . Projectile . | . . . . . AOE 16 | . 10 6 . . Terrain Rammed . | . . . . . Walls Destroyed . | . . . . . Machines Disabled . | . . . . . Actions | -11 -10 -10 -10 -9 --------- Run | Scr Mat Min Exi Min Total 2184 | 40 917 232 605 390 Wait 62 | . 50 10 . 2 Move 2006 | 35 784 206 594 387 Hop . | . . . . . Pick Up 4 | . 3 . 1 . Fast Attach 22 | 5 11 . 5 1 Attach 2 | . 2 . . . Detach . | . . . . . Swap 3 | . 3 . . . Drop 13 | . 8 . 5 . Fire 71 | . 56 15 . . Melee . | . . . . . Ram . | . . . . . Kick 1 | . . 1 . . Crush . | . . . . . Escape Stasis . | . . . . . Rewire . | . . . . . Trap . | . . . . . Miscellaneous . | . . . . . Route ------- -11/Scrapyard -10/Materials (discovered 5 exits: *Mat x3 / *Min x2) -10/Mines (discovered 2 exits: *Mat / *Exi) -10/Exiles -9/Mines (discovered 1 exit: [*Mat]) History --------- Turn | Location | Event 3 | -11/Scrapyard | Discovered new exit (range 16) 56 | -11/Scrapyard | Entered Materials 312 | -10/Materials | Build established: Mutant 327 | -10/Materials | Discovered new exit (range 7) 545 | -10/Materials | Discovered new exit (range 15) 701 | -10/Materials | Discovered new exit (range 5) 731 | -10/Materials | Discovered new exit (range 13) 939 | -10/Materials | Identified exit to Mines 1096 | -10/Materials | Identified exit to Materials 1217 | -10/Materials | Repaired Hvy. EM Pulse Gun 1254 | -10/Materials | Repaired Hvy. EM Pulse Gun 1328 | -10/Materials | Discovered exit to Materials (range 5) 1419 | -10/Materials | Entered Mines 1425 | -10/Mines | Discovered exit to Materials (range 8) 1516 | -10/Mines | Identified exit to Exiles 1703 | -10/Mines | Deemed a non-threat by the Exiles lab entrance 1709 | -10/Mines | Entered Exiles 1709 | -10/Exiles | Accompanied by 1 ally 1739 | -10/Exiles | Led the pair of lost Derelicts to a safe place 1742 | -10/Exiles | Met 8R-AWN 1759 | -10/Exiles | Met EX-HEX 1809 | -10/Exiles | Met EX-DEC 1849 | -10/Exiles | Met EX-BIN 1865 | -10/Exiles | Aligned with FarCom system 1867 | -10/Exiles | Given EX-Vault access code 1898 | -10/Exiles | Opened EX-Vault 1904 | -10/Exiles | Found Prototype Energy Cannon 1904 | -10/Exiles | Identified Firepult 1910 | -10/Exiles | Found Prototype Storage 1910 | -10/Exiles | Identified Lightpack 2.0 1950 | -10/Exiles | Warned to stay clear of 0b10 Research branches 2258 | -10/Exiles | Found Prototype Device 2449 | -10/Exiles | Discovered new exit (range 10) 2463 | -10/Exiles | Left Exiles lab with Army-in-a-Box 2463 | -10/Exiles | Entered Mines 2466 | -9/Mines | Assisted by bots powering up and referring to "LRC-V3" 2553 | -9/Mines | Discovered new exit (range 13) 2903 | -9/Mines | Build established: Skirmisher 3002 | -9/Mines | Assembled infested the area 3008 | -9/Mines | Learned 8 Materials zone layouts 3025 | -9/Mines | Core integrity fell below 50% 3043 | -9/Mines | Core integrity fell below 20% 3046 | -9/Mines | Destroyed by D-53 Grenadier with Mini Grenade Launcher Last Messages --------------- Retrieving dispatch records... Found 2 active squads: 2x Patrol 03002_ ALERT: Infestation in the mines, dispatching Demolisher response squad. 03008_ Acquired derelict log, extracted data. Data stored: Materials zone layouts (x8). 03024_ C-30 ARC bursts open, deploying its payload. 03024_ D-53 Grenadier unfolds itself. 03028_ K-01 Serf destroyed. 03030_ as-37780 destroyed. 03032_ as-37634 destroyed. 03038_ The unstable cave ceiling collapses. 03038_ Lgt. Assault Rifle destroyed. 03040_ Imp. Aluminum Leg destroyed. 03040_ Broken Hvy. EM Pulse Gun destroyed. 03040_ Ion Engine destroyed. 03042_ The unstable cave ceiling collapses. 03043_ as-79192 destroyed. 03044_ The unstable cave ceiling collapses. 03045_ Sensor Array destroyed. Map ----- +----------------------------------------------------+ | ####### #???# ######### #?????? | | #?######## ##???# #?????? | | ### #????????## ##???########### !#?????? | | ??# #?????????## ##????????????#! ##????? | | ??# #??????????# ##??????????##! ####?? | | ??# #??????????# #?????????## ##? | | ??# #?????????# #????????## #? | | ??# #??????### #??????### #? | | ??# #????### #??##### #? | | ??# #???## ##??# ##? | | ??# #??## ###???# ##### #?? | | ??# #??# ###?????## ##???## ##?? | | ??# #??# #?????????# #?????######??? | | ??# #???# #??????????# ##????????????? | | ??# #???#### ##??????????# #????????????? | | ??# #??????# #???????????# #????????????? | | ??# ######## "#???????????# ##???????????? | | ??# "%############# ##?####?????? | | ??######### # ### ##????? | | ?????## # ########### #????? | | ????## # #?????????## #????? | | ???? ######?????# ##????? | | ??? # ## # ###### ####?????? | | # # ## ##????????? | | d # #?????????? | | ###### # d @ ##????????? | | ???????### % """ #????????? | | ???????????## # """ #????????? | | ????????????## ### """ #????????? | | ?????????????# ##?# ##????????? | | ?????????????# ## ##??## ##?????????? | | ?????????????## #?# ###????#####??????????? | | ??????????????#* #?# #?????????????????????? | | ????????????? !%= ?# #???????????g?????????? | | ???????????? ? #????????????b????????? | | ??????????? ###?????????????????????? | | ?????????? % #????????????????????????? | | ?????????? ##????????????????????????? | | ?????????? ##?????????????????????????? | | ??????????? ###???????????????????????????? | | ???????????? ??????????????????????????????? | | ???????????" ??????????????????????????????? | | ???????????????????????????????????????????? | | ???????????????????????????????????????????? | | ???????????????????????????????????????????? | | ???????????????????????????????????????????? | | ???????????????????????????????????????????? | | ???????????????????????????????????????????? | | ???????????????????????????????????????????? | | ???????????????????????????????????????????? | +----------------------------------------------------+ Best States ------------- Heat Dissipation 39 Energy Generation 10 Energy Capacity 250 Matter Stores 300 Matter Capacity 300 Sight Range 18 Robot Scan Range 10 Terrain Scan Density 10 Evasion (%) 40 Recoil Reduction 2 Item Schematics ----------------- None Robot Schematics ------------------ None Fabricated ------------ Nothing Alien Tech Used ----------------- None Achievements -------------- None Challenges ------------ None Game ------ Seed MinesnifferMissileSheargun Manual? 0 Play Time 00:32:22 Cumulative 60.7 hours Start 2021.05.17 @ 11:02:39 End 2021.05.17 @ 14:11:47 Sessions 1 Manual Loads 0 Difficulty Rogue Special Mode None Game No. 132 Rogue 132 Adventurer 0 Explorer 0 Win Type - Total 0 Types 0/0/0/0/0/0/0/0/0 Lore% 27 Gallery% 34 Achievement% 26 Wizard Run 0 Options --------- ASCII 0 Keyboard 0 Movement Numpad Keybinds 0 Fullscreen 1 Font 12/Smallcaps Map View 83x54 Tactical HUD 1 Map Filters NONE Filters NONE Steam 1 RUN: 6268b234-40f2-4b38-ad6b-33ee521175aa